[Event "FIDE Women World Blitz 2021"]
[Site "Warsaw"]
[Date "2021.12.30"]
[Round "12.23"]
[White "Vantika Agrawal"]
[Black "Michna, Marta"]
[Result "1-0"]
[ECO "A55"]
[WhiteElo "2329"]
[BlackElo "2312"]
[Annotator "NA"]
[PlyCount "112"]
[EventDate "2021.12.29"]
[EventType "swiss"]
[EventCountry "POL"]
[Tiebreak "Cut1 Buchholz"]
[SourceTitle "playchess.com"]
[Source "ChessBase"]
[SourceQuality "1"]
[TimeControl "180+2"]

1. Nf3 {[%emt 0:00:01]} Nf6 {[%emt 0:00:01]} 2. g3 {[%emt 0:00:01]} d6 {
[%emt 0:00:01]} 3. d4 {[%emt 0:00:01]} Nbd7 {[%emt 0:00:01]} 4. Bg2 {[%emt 0:
00:00]} e5 {[%emt 0:00:01]} 5. c4 {[%emt 0:00:02]} Be7 {[%emt 0:00:02]} 6. O-O
{[%emt 0:00:02]} O-O {[%emt 0:00:01]} 7. Nc3 {[%emt 0:00:01]} c6 {[%emt 0:00:
02]} 8. e4 {[%emt 0:00:01]} a6 {[%emt 0:00:03]} 9. a4 {[%emt 0:00:01]} a5 {
[%emt 0:00:01]} 10. h3 {[%emt 0:00:01]} Qc7 {[%emt 0:00:04]} 11. Be3 {[%emt 0:
00:01]} Re8 {[%emt 0:00:01]} 12. Qc2 {[%emt 0:00:01]} Nb8 {[%emt 0:00:01]} 13.
Rad1 {[%emt 0:00:08]} Na6 {[%emt 0:00:05]} 14. Rfe1 {[%emt 0:00:05]} Bf8 {
[%emt 0:00:06]} 15. b3 {[%emt 0:00:10]} Nd7 {[%emt 0:00:05]} 16. Qc1 {[%emt 0:
00:23]} Nb4 {[%emt 0:00:12]} 17. Kh2 {[%emt 0:00:22]} exd4 {[%emt 0:00:03]} 18.
Nxd4 {[%emt 0:00:03]} Nc5 {[%emt 0:00:02]} 19. Qb1 {[%emt 0:00:10]} Bd7 {
[%emt 0:00:09]} 20. f4 {[%emt 0:00:03]} Rad8 {[%emt 0:00:07]} 21. Bf2 {[%emt 0:
00:42]} Bc8 {[%emt 0:00:12]} 22. Rd2 {[%emt 0:00:03]} g6 {[%emt 0:00:11]} 23.
Na2 {[%emt 0:00:12]} Nba6 {[%emt 0:00:03]} 24. Rde2 {[%emt 0:00:24]} Bg7 {
[%emt 0:00:01]} 25. Nf3 {[%emt 0:00:04]} Qb6 {[%emt 0:00:10]} 26. Nd2 {[%emt 0:
00:04]} Nb4 {[%emt 0:00:08]} 27. Nxb4 {[%emt 0:00:03]} Qxb4 {[%emt 0:00:01]}
28. Qc2 {[%emt 0:00:06]} Qc3 {[%emt 0:00:33]} 29. Qxc3 {[%emt 0:00:12]} Bxc3 {
[%emt 0:00:01]} 30. Rb1 {[%emt 0:00:20]} Bxd2 {[%emt 0:00:10]} 31. Rxd2 {
[%emt 0:00:04]} Nxe4 {[%emt 0:00:01]} 32. Bxe4 {[%emt 0:00:04]} Rxe4 {[%emt 0:
00:01]} 33. Rbd1 {[%emt 0:00:03]} d5 {[%emt 0:00:11]} 34. cxd5 {[%emt 0:00:01]}
cxd5 {[%emt 0:00:00]} 35. Rxd5 {[%emt 0:00:02]} Rxd5 {[%emt 0:00:03]} 36. Rxd5
{[%emt 0:00:01]} Re2 {[%emt 0:00:19]} 37. Kg2 {[%emt 0:00:01]} Bxh3+ {[%emt 0:
00:02]} 38. Kxh3 {[%emt 0:00:02]} Rxf2 {[%emt 0:00:01]} 39. Rxa5 {[%emt 0:00:
02]} Rd2 {[%emt 0:00:04]} 40. Ra7 {[%emt 0:00:07]} b6 {[%emt 0:00:07]} 41. Ra6
{[%emt 0:00:03]} h5 {[%emt 0:00:19]} 42. Rxb6 {[%emt 0:00:02]} Kg7 {[%emt 0:00:
00]} 43. a5 {[%emt 0:00:01]} f6 {[%emt 0:00:01]} 44. a6 {[%emt 0:00:03]} g5 {
[%emt 0:00:00]} 45. fxg5 {[%emt 0:00:01]} fxg5 {[%emt 0:00:01]} 46. b4 {
[%emt 0:00:04]} Ra2 {[%emt 0:00:04]} 47. b5 {[%emt 0:00:00]} Kf7 {[%emt 0:00:
01]} 48. g4 {[%emt 0:00:03]} Ra3+ {[%emt 0:00:00]} 49. Kg2 {[%emt 0:00:01]} h4
{[%emt 0:00:01]} 50. Rb7+ {[%emt 0:00:01]} Ke6 {[%emt 0:00:01]} 51. a7 {
[%emt 0:00:02]} Ke5 {[%emt 0:00:02]} 52. b6 {[%emt 0:00:02]} Kf4 {[%emt 0:00:
01]} 53. Rb8 {[%emt 0:00:03]} Ra2+ {[%emt 0:00:00]} 54. Kf1 {[%emt 0:00:02]}
Ra1+ {[%emt 0:00:04]} 55. Ke2 {[%emt 0:00:01]} Ra2+ {[%emt 0:00:09]} 56. Kd3 {
[%emt 0:00:01]} Ra3+ {[%emt 0:00:01]} 1-0

[Event "FIDE Women World Blitz 2021"]
[Site "Warsaw"]
[Date "2021.12.30"]
[Round "12.24"]
[White "Efimenko, Maria"]
[Black "Berend, Elvira"]
[Result "1/2-1/2"]
[ECO "B22"]
[WhiteElo "2207"]
[BlackElo "2328"]
[Annotator "NA"]
[PlyCount "102"]
[EventDate "2021.12.29"]
[EventType "swiss"]
[EventCountry "POL"]
[Tiebreak "Cut1 Buchholz"]
[SourceTitle "playchess.com"]
[Source "ChessBase"]
[SourceQuality "1"]
[TimeControl "180+2"]

1. e4 {[%emt 0:00:01]} c5 {[%emt 0:00:03]} 2. c3 {[%emt 0:00:01]} Nf6 {[%emt 0:
00:03]} 3. e5 {[%emt 0:00:00]} Nd5 {[%emt 0:00:02]} 4. d4 {[%emt 0:00:01]} cxd4
{[%emt 0:00:06]} 5. cxd4 {[%emt 0:00:01]} d6 {[%emt 0:00:04]} 6. Nf3 {[%emt 0:
00:04]} e6 {[%emt 0:00:14]} 7. Bc4 {[%emt 0:00:13]} Nc6 {[%emt 0:00:04]} 8. O-O
{[%emt 0:00:03]} Be7 {[%emt 0:00:06]} 9. Qe2 {[%emt 0:00:03]} O-O {[%emt 0:00:
20]} 10. Nc3 {[%emt 0:00:30]} Nxc3 {[%emt 0:00:05]} 11. bxc3 {[%emt 0:00:02]}
dxe5 {[%emt 0:00:02]} 12. dxe5 {[%emt 0:00:11]} Qa5 {[%emt 0:00:26]} 13. Bd2 {
[%emt 0:00:12]} Rd8 {[%emt 0:00:05]} 14. Bd3 {[%emt 0:00:08]} g6 {[%emt 0:00:
01]} 15. Rfe1 {[%emt 0:00:41]} Bd7 {[%emt 0:00:15]} 16. h4 {[%emt 0:00:08]} Be8
{[%emt 0:00:01]} 17. h5 {[%emt 0:00:05]} Qa4 {[%emt 0:00:09]} 18. Be4 {[%emt 0:
00:13]} Rac8 {[%emt 0:00:05]} 19. Bg5 {[%emt 0:00:13]} Qa3 {[%emt 0:00:18]} 20.
Qe3 {[%emt 0:00:12]} Bxg5 {[%emt 0:00:14]} 21. Nxg5 {[%emt 0:00:05]} Qe7 {
[%emt 0:00:16]} 22. Qg3 {[%emt 0:00:09]} Na5 {[%emt 0:00:09]} 23. hxg6 {
[%emt 0:00:13]} fxg6 {[%emt 0:00:02]} 24. Qg4 {[%emt 0:00:02]} Nc4 {[%emt 0:00:
11]} 25. Qxe6+ {[%emt 0:00:05]} Qxe6 {[%emt 0:00:02]} 26. Nxe6 {[%emt 0:00:01]}
Rd2 {[%emt 0:00:01]} 27. Bxb7 {[%emt 0:00:03]} Rb8 {[%emt 0:00:03]} 28. Ba6 {
[%emt 0:00:01]} Nb6 {[%emt 0:00:05]} 29. Nd4 {[%emt 0:00:03]} Ba4 {[%emt 0:00:
09]} 30. e6 {[%emt 0:00:02]} Kg7 {[%emt 0:00:03]} 31. e7 {[%emt 0:00:01]} Re8 {
[%emt 0:00:04]} 32. Ne6+ {[%emt 0:00:03]} Kf6 {[%emt 0:00:02]} 33. Nf8 {
[%emt 0:00:09]} Rxe7 {[%emt 0:00:01]} 34. Rxe7 {[%emt 0:00:01]} Kxe7 {[%emt 0:
00:02]} 35. Nxh7 {[%emt 0:00:01]} Nd5 {[%emt 0:00:07]} 36. Re1+ {[%emt 0:00:02]
} Kd6 {[%emt 0:00:02]} 37. c4 {[%emt 0:00:01]} Nc3 {[%emt 0:00:01]} 38. Ng5 {
[%emt 0:00:02]} Rxa2 {[%emt 0:00:01]} 39. Re6+ {[%emt 0:00:02]} Kc5 {[%emt 0:
00:02]} 40. Rxg6 {[%emt 0:00:01]} Bc6 {[%emt 0:00:02]} 41. Bc8 {[%emt 0:00:04]}
Ne2+ {[%emt 0:00:01]} 42. Kh2 {[%emt 0:00:01]} Nf4 {[%emt 0:00:02]} 43. Rf6 {
[%emt 0:00:02]} Nxg2 {[%emt 0:00:01]} 44. Rf5+ {[%emt 0:00:03]} Kb4 {[%emt 0:
00:02]} 45. Be6 {[%emt 0:00:05]} Ne1 {[%emt 0:00:02]} 46. Kg3 {[%emt 0:00:01]}
Nd3 {[%emt 0:00:02]} 47. Nf3 {[%emt 0:00:02]} Rxf2 {[%emt 0:00:04]} 48. Nd4 {
[%emt 0:00:04]} Rxf5 {[%emt 0:00:01]} 49. Nxc6+ {[%emt 0:00:01]} Kc5 {[%emt 0:
00:01]} 50. Bxf5 {[%emt 0:00:01]} Nb2 {[%emt 0:00:02]} 51. Nxa7 {[%emt 0:00:02]
} Nxc4 {[%emt 0:00:02]} 1/2-1/2

[Event "FIDE Women World Blitz 2021"]
[Site "Warsaw"]
[Date "2021.12.30"]
[Round "12.25"]
[White "Strutinskaia, Galina"]
[Black "Batsiashvili, Nino"]
[Result "0-1"]
[ECO "D38"]
[WhiteElo "2188"]
[BlackElo "2491"]
[Annotator "ChessBase"]
[PlyCount "80"]
[EventDate "2021.12.29"]
[EventType "swiss"]
[EventCountry "POL"]
[Tiebreak "Cut1 Buchholz"]
[SourceTitle "playchess.com"]
[Source "ChessBase"]
[SourceQuality "1"]
[TimeControl "180+2"]

1. d4 d5 {[%emt 0:00:01]} 2. c4 e6 3. Nf3 {[%emt 0:00:03]} Nf6 {[%emt 0:00:00]}
4. Nc3 {[%emt 0:00:01]} Bb4 {[%emt 0:00:01]} 5. cxd5 {[%emt 0:00:03]} exd5 {
[%emt 0:00:01]} 6. Bg5 {[%emt 0:00:04]} h6 {[%emt 0:00:03]} 7. Bxf6 {[%emt 0:
00:01]} Qxf6 {[%emt 0:00:01]} 8. Qa4+ {[%emt 0:00:02]} Nc6 {[%emt 0:00:01]} 9.
e3 {[%emt 0:00:01]} O-O {[%emt 0:00:09]} 10. Be2 {[%emt 0:00:05]} Be6 {[%emt 0:
00:08]} 11. a3 {[%emt 0:00:05]} Be7 {[%emt 0:00:08]} 12. b4 {[%emt 0:00:01]} a6
{[%emt 0:00:06]} 13. Qc2 {[%emt 0:00:09]} Na7 {[%emt 0:00:13]} 14. Rb1 {
[%emt 0:00:06]} c6 {[%emt 0:00:01]} 15. Ne5 {[%emt 0:00:07]} Bd6 {[%emt 0:00:
05]} 16. f4 {[%emt 0:00:02]} Nb5 {[%emt 0:00:20]} 17. a4 {[%emt 0:00:10]} Na3 {
[%emt 0:00:05]} 18. Qb2 {[%emt 0:00:01]} Nxb1 {[%emt 0:00:01]} 19. Qxb1 {
[%emt 0:00:00]} Qe7 {[%emt 0:00:09]} 20. Nd3 {[%emt 0:00:07]} Bf5 {[%emt 0:00:
03]} 21. O-O {[%emt 0:00:02]} Bxd3 {[%emt 0:00:04]} 22. Qxd3 {[%emt 0:00:02]}
Bxb4 {[%emt 0:00:03]} 23. Nd1 {[%emt 0:00:02]} a5 {[%emt 0:00:06]} 24. f5 {
[%emt 0:00:02]} f6 {[%emt 0:00:02]} 25. Rf4 {[%emt 0:00:08]} Qd7 {[%emt 0:00:
28]} 26. Rg4 {[%emt 0:00:12]} Rf7 {[%emt 0:00:01]} 27. Nf2 {[%emt 0:00:17]} b5
{[%emt 0:00:11]} 28. Nh3 {[%emt 0:00:09]} bxa4 {[%emt 0:00:02]} 29. Nf4 {
[%emt 0:00:02]} a3 {[%emt 0:00:05]} 30. Qb3 {[%emt 0:00:08]} Re8 {[%emt 0:00:
01]} 31. Ne6 {[%emt 0:00:09]} Rxe6 {[%emt 0:00:04]} 32. fxe6 {[%emt 0:00:01]}
Qxe6 {[%emt 0:00:01]} 33. Rg3 {[%emt 0:00:01]} Re7 {[%emt 0:00:04]} 34. Qc2 {
[%emt 0:00:09]} Qe4 {[%emt 0:00:24]} 35. Bd3 {[%emt 0:00:01]} a2 {[%emt 0:00:
07]} 36. Bxe4 {[%emt 0:00:16]} a1=Q+ {[%emt 0:00:03]} 37. Kf2 {[%emt 0:00:03]}
dxe4 {[%emt 0:00:03]} 38. Qe2 {[%emt 0:00:15]} Kh8 {[%emt 0:00:06]} 39. Rg6 {
[%emt 0:00:04]} Bc3 {[%emt 0:00:03]} 40. Kg3 {[%emt 0:00:06]} Qe1+ {[%emt 0:00:
01]} 0-1

[Event "FIDE Women World Blitz 2021"]
[Site "Warsaw"]
[Date "2021.12.30"]
[Round "12.26"]
[White "Padmini, Rout"]
[Black "Semenova, Elena"]
[Result "1-0"]
[ECO "C47"]
[WhiteElo "2353"]
[BlackElo "2233"]
[Annotator "NA"]
[PlyCount "101"]
[EventDate "2021.12.29"]
[EventType "swiss"]
[EventCountry "POL"]
[Tiebreak "Cut1 Buchholz"]
[SourceTitle "playchess.com"]
[Source "ChessBase"]
[SourceQuality "1"]
[TimeControl "180+2"]

1. e4 {[%emt 0:00:01]} e5 {[%emt 0:00:00]} 2. Nf3 {[%emt 0:00:01]} Nf6 3. Nc3 {
[%emt 0:00:03]} Nc6 {[%emt 0:00:01]} 4. g3 {[%emt 0:00:06]} d5 {[%emt 0:00:05]}
5. exd5 {[%emt 0:00:05]} Nxd5 {[%emt 0:00:01]} 6. Bg2 {[%emt 0:00:01]} Nxc3 {
[%emt 0:00:03]} 7. bxc3 {[%emt 0:00:02]} Bc5 {[%emt 0:00:07]} 8. O-O {[%emt 0:
00:04]} O-O {[%emt 0:00:01]} 9. Rb1 {[%emt 0:00:17]} Bb6 {[%emt 0:00:07]} 10.
d3 {[%emt 0:00:03]} Bg4 {[%emt 0:00:01]} 11. Qe1 {[%emt 0:00:05]} Re8 {[%emt 0:
00:03]} 12. Nd2 {[%emt 0:00:02]} Qd7 {[%emt 0:00:06]} 13. Nc4 {[%emt 0:00:02]}
Bh3 {[%emt 0:00:07]} 14. Qe4 {[%emt 0:00:37]} Bxg2 {[%emt 0:00:16]} 15. Qxg2 {
[%emt 0:00:03]} h6 {[%emt 0:00:16]} 16. Re1 {[%emt 0:00:04]} Rad8 {[%emt 0:00:
03]} 17. a4 {[%emt 0:00:20]} Re6 {[%emt 0:00:48]} 18. Rb5 {[%emt 0:00:18]} Qe8
{[%emt 0:01:18]} 19. a5 {[%emt 0:00:16]} a6 {[%emt 0:00:06]} 20. Rb3 {[%emt 0:
00:20]} Nxa5 {[%emt 0:00:02]} 21. Nxa5 {[%emt 0:00:04]} Bxa5 {[%emt 0:00:00]}
22. Qxb7 {[%emt 0:00:08]} Bb6 {[%emt 0:00:01]} 23. Be3 {[%emt 0:00:03]} Qc6 {
[%emt 0:00:04]} 24. Qxa6 {[%emt 0:00:12]} Bxe3 {[%emt 0:00:03]} 25. Qxc6 {
[%emt 0:00:02]} Bxf2+ {[%emt 0:00:03]} 26. Kxf2 {[%emt 0:00:01]} Rxc6 {[%emt 0:
00:00]} 27. Rxe5 {[%emt 0:00:02]} Ra8 {[%emt 0:00:04]} 28. c4 {[%emt 0:00:01]}
Ra2 {[%emt 0:00:01]} 29. Re2 {[%emt 0:00:02]} Rf6+ {[%emt 0:00:02]} 30. Ke1 {
[%emt 0:00:03]} Ra1+ {[%emt 0:00:01]} 31. Kd2 {[%emt 0:00:01]} g6 {[%emt 0:00:
03]} 32. Rb8+ {[%emt 0:00:02]} Kg7 {[%emt 0:00:01]} 33. Rb7 {[%emt 0:00:02]} c6
{[%emt 0:00:03]} 34. Rc7 {[%emt 0:00:04]} h5 {[%emt 0:00:01]} 35. Kc3 {[%emt 0:
00:03]} h4 {[%emt 0:00:03]} 36. gxh4 {[%emt 0:00:02]} Rg1 {[%emt 0:00:02]} 37.
Kb4 {[%emt 0:00:02]} Rg4 {[%emt 0:00:03]} 38. Kc5 {[%emt 0:00:01]} Rxh4 {
[%emt 0:00:03]} 39. Rxc6 {[%emt 0:00:01]} Rf5+ {[%emt 0:00:01]} 40. Kb6 {
[%emt 0:00:02]} Rh8 {[%emt 0:00:02]} 41. Kb7 {[%emt 0:00:04]} Rfh5 {[%emt 0:00:
02]} 42. Rd6 {[%emt 0:00:25]} Rxh2 {[%emt 0:00:01]} 43. Rxh2 {[%emt 0:00:01]}
Rxh2 {[%emt 0:00:01]} 44. c5 {[%emt 0:00:01]} Rxc2 {[%emt 0:00:04]} 45. c6 {
[%emt 0:00:01]} Rb2+ {[%emt 0:00:05]} 46. Ka7 {[%emt 0:00:01]} Ra2+ {[%emt 0:
00:01]} 47. Kb8 {[%emt 0:00:01]} Rb2+ {[%emt 0:00:01]} 48. Kc8 {[%emt 0:00:00]}
g5 {[%emt 0:00:01]} 49. c7 {[%emt 0:00:01]} g4 {[%emt 0:00:04]} 50. Kd7 {
[%emt 0:00:02]} Rc2 {[%emt 0:00:02]} 51. Rc6 {[%emt 0:00:01]} 1-0

[Event "FIDE Women World Blitz 2021"]
[Site "Warsaw"]
[Date "2021.12.30"]
[Round "12.27"]
[White "Zawadzka, Jolanta"]
[Black "Mamedjarova, Turkan"]
[Result "0-1"]
[ECO "C84"]
[WhiteElo "2429"]
[BlackElo "2264"]
[Annotator "NA"]
[PlyCount "104"]
[EventDate "2021.12.29"]
[EventType "swiss"]
[EventCountry "POL"]
[Tiebreak "Cut1 Buchholz"]
[SourceTitle "playchess.com"]
[Source "ChessBase"]
[SourceQuality "1"]
[TimeControl "180+2"]

1. e4 {[%emt 0:00:01]} e5 {[%emt 0:00:08]} 2. Nf3 {[%emt 0:00:02]} Nc6 {
[%emt 0:00:01]} 3. Bb5 {[%emt 0:00:01]} a6 {[%emt 0:00:01]} 4. Ba4 {[%emt 0:00:
01]} Nf6 {[%emt 0:00:01]} 5. Nc3 {[%emt 0:00:01]} b5 {[%emt 0:00:05]} 6. Bb3 {
[%emt 0:00:01]} Be7 {[%emt 0:00:07]} 7. O-O {[%emt 0:00:05]} O-O {[%emt 0:00:
02]} 8. a4 {[%emt 0:00:08]} Rb8 {[%emt 0:00:04]} 9. axb5 {[%emt 0:00:02]} axb5
{[%emt 0:00:01]} 10. d3 {[%emt 0:00:04]} d6 {[%emt 0:00:02]} 11. h3 {[%emt 0:
00:01]} Be6 {[%emt 0:00:05]} 12. Nd5 {[%emt 0:00:09]} Qd7 {[%emt 0:00:10]} 13.
c3 {[%emt 0:00:12]} b4 {[%emt 0:00:20]} 14. Ra6 {[%emt 0:00:08]} Bxd5 {[%emt 0:
00:22]} 15. exd5 {[%emt 0:00:03]} Nd8 16. Ba4 {[%emt 0:00:21]} Qc8 {[%emt 0:00:
07]} 17. Ra5 {[%emt 0:00:13]} Nd7 {[%emt 0:00:12]} 18. Nd2 {[%emt 0:00:34]} Nc5
{[%emt 0:00:20]} 19. Bc2 {[%emt 0:00:08]} c6 {[%emt 0:00:16]} 20. d4 {[%emt 0:
00:18]} exd4 {[%emt 0:00:08]} 21. cxd4 {[%emt 0:00:06]} Ncb7 {[%emt 0:00:04]}
22. Ra4 {[%emt 0:00:02]} cxd5 {[%emt 0:00:02]} 23. Rxb4 {[%emt 0:00:03]} Nc6 {
[%emt 0:00:02]} 24. Ra4 {[%emt 0:00:05]} Bf6 {[%emt 0:00:16]} 25. Qh5 {[%emt 0:
00:14]} g6 {[%emt 0:00:02]} 26. Qxd5 {[%emt 0:00:01]} Nxd4 {[%emt 0:00:07]} 27.
Bd3 {[%emt 0:00:06]} Ne6 {[%emt 0:00:05]} 28. Ne4 {[%emt 0:00:05]} Bg7 {
[%emt 0:00:03]} 29. Be3 {[%emt 0:00:23]} Nec5 {[%emt 0:00:04]} 30. Rc4 {
[%emt 0:00:04]} Qd8 {[%emt 0:00:10]} 31. Bg5 {[%emt 0:00:02]} Qb6 {[%emt 0:00:
06]} 32. Bf6 {[%emt 0:00:03]} Nxe4 {[%emt 0:00:03]} 33. Rxe4 {[%emt 0:00:02]}
Bxf6 {[%emt 0:00:02]} 34. Rf4 {[%emt 0:00:04]} Bg7 {[%emt 0:00:02]} 35. Bc4 {
[%emt 0:00:01]} Qc7 {[%emt 0:00:02]} 36. b3 {[%emt 0:00:03]} Na5 {[%emt 0:00:
03]} 37. Re1 {[%emt 0:00:04]} Nxc4 {[%emt 0:00:02]} 38. bxc4 {[%emt 0:00:01]}
Rfe8 {[%emt 0:00:02]} 39. Rd1 {[%emt 0:00:01]} Rbd8 {[%emt 0:00:03]} 40. Rf3 {
[%emt 0:00:02]} h6 {[%emt 0:00:02]} 41. Rfd3 {[%emt 0:00:01]} Rc8 {[%emt 0:00:
07]} 42. Rc1 {[%emt 0:00:04]} Re6 {[%emt 0:00:09]} 43. Rd2 {[%emt 0:00:05]} Qc5
{[%emt 0:00:01]} 44. Qd3 {[%emt 0:00:01]} h5 {[%emt 0:00:03]} 45. Ra2 {[%emt 0:
00:02]} Rce8 {[%emt 0:00:02]} 46. Qd2 {[%emt 0:00:05]} Kh7 {[%emt 0:00:01]} 47.
Qc2 {[%emt 0:00:03]} Qg5 {[%emt 0:00:03]} 48. Rd1 {[%emt 0:00:03]} Bd4 {
[%emt 0:00:05]} 49. Rxd4 {[%emt 0:00:05]} Re1+ {[%emt 0:00:01]} 50. Kh2 {
[%emt 0:00:01]} Qe5+ {[%emt 0:00:00]} 51. f4 {[%emt 0:00:03]} Qxd4 {[%emt 0:00:
02]} 52. Rb2 {[%emt 0:00:03]} Qg1+ {[%emt 0:00:01]} 0-1

[Event "FIDE Women World Blitz 2021"]
[Site "Warsaw"]
[Date "2021.12.30"]
[Round "12.28"]
[White "Serikbay, Assel"]
[Black "Garifullina, Leya"]
[Result "0-1"]
[ECO "A32"]
[WhiteElo "2237"]
[BlackElo "2416"]
[Annotator "NA"]
[PlyCount "114"]
[EventDate "2021.12.29"]
[EventType "swiss"]
[EventCountry "POL"]
[Tiebreak "Cut1 Buchholz"]
[SourceTitle "playchess.com"]
[Source "ChessBase"]
[SourceQuality "1"]
[TimeControl "180+2"]

1. d4 {[%emt 0:00:01]} Nf6 {[%emt 0:00:01]} 2. c4 {[%emt 0:00:02]} e6 {[%emt 0:
00:01]} 3. Nf3 {[%emt 0:00:03]} d5 {[%emt 0:00:01]} 4. Nc3 {[%emt 0:00:01]} c5
{[%emt 0:00:01]} 5. cxd5 {[%emt 0:00:04]} cxd4 {[%emt 0:00:02]} 6. Nxd4 {
[%emt 0:00:06]} Nxd5 {[%emt 0:00:02]} 7. Bd2 {[%emt 0:00:35]} Nf6 {[%emt 0:00:
01]} 8. e3 {[%emt 0:00:04]} Be7 {[%emt 0:00:08]} 9. Bc4 {[%emt 0:00:10]} O-O {
[%emt 0:00:03]} 10. O-O {[%emt 0:00:01]} e5 {[%emt 0:00:16]} 11. Nde2 {[%emt 0:
00:09]} Nc6 {[%emt 0:00:03]} 12. Rc1 {[%emt 0:00:04]} Bf5 {[%emt 0:00:11]} 13.
Ng3 {[%emt 0:00:22]} Bg6 {[%emt 0:00:19]} 14. e4 {[%emt 0:00:14]} Rc8 {[%emt 0:
00:09]} 15. Be3 {[%emt 0:00:08]} a6 {[%emt 0:00:15]} 16. Bd5 {[%emt 0:00:06]}
Qd6 {[%emt 0:00:58]} 17. Na4 {[%emt 0:00:06]} Nxd5 {[%emt 0:00:16]} 18. exd5 {
[%emt 0:00:02]} Nd4 {[%emt 0:00:08]} 19. Rxc8 {[%emt 0:00:10]} Rxc8 {[%emt 0:
00:02]} 20. Bxd4 {[%emt 0:00:01]} exd4 {[%emt 0:00:01]} 21. Qxd4 {[%emt 0:00:
03]} Bf6 {[%emt 0:00:03]} 22. Qe3 {[%emt 0:00:08]} b5 {[%emt 0:00:14]} 23. Nc3
{[%emt 0:00:22]} Bxc3 {[%emt 0:00:02]} 24. bxc3 {[%emt 0:00:00]} Qxd5 {[%emt 0:
00:02]} 25. h4 {[%emt 0:00:20]} h5 {[%emt 0:00:03]} 26. Ne2 {[%emt 0:00:01]}
Qd3 {[%emt 0:00:06]} 27. Nf4 {[%emt 0:00:08]} Qxe3 {[%emt 0:00:02]} 28. fxe3 {
[%emt 0:00:01]} Rxc3 {[%emt 0:00:01]} 29. Nxg6 {[%emt 0:00:03]} fxg6 {[%emt 0:
00:01]} 30. Rd1 {[%emt 0:00:13]} Rxe3 {[%emt 0:00:08]} 31. Kf2 {[%emt 0:00:02]}
Ra3 {[%emt 0:00:01]} 32. Rd2 {[%emt 0:00:01]} Kh7 {[%emt 0:00:02]} 33. g3 {
[%emt 0:00:02]} Kh6 {[%emt 0:00:01]} 34. Kg2 {[%emt 0:00:02]} g5 {[%emt 0:00:
00]} 35. Rd6+ {[%emt 0:00:05]} g6 {[%emt 0:00:01]} 36. hxg5+ {[%emt 0:00:03]}
Kxg5 {[%emt 0:00:01]} 37. Rd2 {[%emt 0:00:01]} Ra4 {[%emt 0:00:05]} 38. Kh3 {
[%emt 0:00:02]} Rc4 {[%emt 0:00:03]} 39. Rd6 {[%emt 0:00:02]} Ra4 {[%emt 0:00:
02]} 40. Rd2 {[%emt 0:00:01]} Ra3 {[%emt 0:00:00]} 41. Rd5+ {[%emt 0:00:02]}
Kf6 {[%emt 0:00:04]} 42. Rd2 {[%emt 0:00:01]} g5 {[%emt 0:00:01]} 43. Kg2 {
[%emt 0:00:04]} Kf5 {[%emt 0:00:02]} 44. Kh2 {[%emt 0:00:09]} h4 {[%emt 0:00:
06]} 45. gxh4 {[%emt 0:00:02]} gxh4 {[%emt 0:00:01]} 46. Kg2 {[%emt 0:00:01]}
h3+ {[%emt 0:00:01]} 47. Kh2 {[%emt 0:00:01]} Ke5 {[%emt 0:00:01]} 48. Re2+ {
[%emt 0:00:03]} Kd5 {[%emt 0:00:01]} 49. Rf2 {[%emt 0:00:01]} Rd3 {[%emt 0:00:
02]} 50. Rf6 {[%emt 0:00:02]} Ra3 {[%emt 0:00:01]} 51. Rf2 {[%emt 0:00:01]} Kc5
{[%emt 0:00:01]} 52. Rb2 {[%emt 0:00:03]} a5 {[%emt 0:00:01]} 53. Rd2 {[%emt 0:
00:03]} Rc3 {[%emt 0:00:02]} 54. Rf2 {[%emt 0:00:02]} Kb4 {[%emt 0:00:01]} 55.
Rf5 {[%emt 0:00:03]} Ka4 {[%emt 0:00:01]} 56. Rf4+ {[%emt 0:00:01]} b4 {
[%emt 0:00:01]} 57. Rf5 {[%emt 0:00:01]} Rc2+ {[%emt 0:00:01]} 0-1

[Event "FIDE Women World Blitz 2021"]
[Site "Warsaw"]
[Date "2021.12.30"]
[Round "12.29"]
[White "Garcia Martin, Marta"]
[Black "Kurmangaliyeva, Liya"]
[Result "1-0"]
[ECO "B23"]
[WhiteElo "2194"]
[BlackElo "2222"]
[Annotator "NA"]
[PlyCount "121"]
[EventDate "2021.12.29"]
[EventType "swiss"]
[EventCountry "POL"]
[Tiebreak "Cut1 Buchholz"]
[SourceTitle "playchess.com"]
[Source "ChessBase"]
[SourceQuality "1"]
[TimeControl "180+2"]

1. e4 {[%emt 0:00:02]} c5 {[%emt 0:00:01]} 2. Nc3 {[%emt 0:00:01]} Nc6 {
[%emt 0:00:01]} 3. Bb5 {[%emt 0:00:01]} Nd4 {[%emt 0:00:02]} 4. Nf3 {[%emt 0:
00:01]} a6 {[%emt 0:00:04]} 5. Bd3 {[%emt 0:00:01]} g6 {[%emt 0:00:02]} 6. O-O
{[%emt 0:00:03]} Bg7 {[%emt 0:00:02]} 7. Rb1 {[%emt 0:00:15]} e6 {[%emt 0:00:
24]} 8. a3 {[%emt 0:00:24]} Ne7 {[%emt 0:00:05]} 9. b4 {[%emt 0:00:19]} cxb4 {
[%emt 0:00:29]} 10. axb4 {[%emt 0:00:01]} O-O {[%emt 0:00:03]} 11. Re1 {
[%emt 0:00:19]} d6 {[%emt 0:00:17]} 12. Bb2 {[%emt 0:00:14]} b5 {[%emt 0:00:21]
} 13. Nxd4 {[%emt 0:01:06]} Bxd4 {[%emt 0:00:01]} 14. Ne2 {[%emt 0:00:11]} Bxb2
{[%emt 0:00:02]} 15. Rxb2 {[%emt 0:00:01]} Nc6 {[%emt 0:00:02]} 16. c3 {
[%emt 0:00:03]} Qf6 {[%emt 0:00:08]} 17. Ng3 {[%emt 0:00:17]} Bb7 {[%emt 0:00:
02]} 18. Bc2 {[%emt 0:00:03]} Ne5 {[%emt 0:00:01]} 19. Ra2 {[%emt 0:00:05]}
Rfd8 {[%emt 0:00:09]} 20. Qe2 {[%emt 0:00:02]} Nc4 {[%emt 0:00:04]} 21. d3 {
[%emt 0:00:09]} Nb6 {[%emt 0:00:02]} 22. d4 {[%emt 0:00:03]} Rac8 {[%emt 0:00:
03]} 23. Ra3 {[%emt 0:00:02]} h5 {[%emt 0:00:10]} 24. Nf1 {[%emt 0:00:02]} Nc4
{[%emt 0:00:07]} 25. Ra2 {[%emt 0:00:00]} h4 {[%emt 0:00:15]} 26. h3 {[%emt 0:
00:01]} Qg5 {[%emt 0:00:01]} 27. Bd3 {[%emt 0:00:02]} Nb6 {[%emt 0:00:07]} 28.
Ra3 {[%emt 0:00:03]} Rc7 {[%emt 0:00:02]} 29. Nd2 {[%emt 0:00:02]} Rdc8 {
[%emt 0:00:02]} 30. Nf3 {[%emt 0:00:02]} Qf4 {[%emt 0:00:04]} 31. Qc2 {[%emt 0:
00:06]} Nc4 {[%emt 0:00:09]} 32. Raa1 {[%emt 0:00:01]} g5 {[%emt 0:00:07]} 33.
Rac1 {[%emt 0:00:01]} g4 {[%emt 0:00:04]} 34. hxg4 {[%emt 0:00:01]} Qxg4 {
[%emt 0:00:02]} 35. Nh2 {[%emt 0:00:02]} Qg5 {[%emt 0:00:02]} 36. Nf3 {[%emt 0:
00:02]} Qf4 {[%emt 0:00:02]} 37. Qe2 {[%emt 0:00:04]} f6 {[%emt 0:00:06]} 38.
Rc2 {[%emt 0:00:01]} Rg7 {[%emt 0:00:01]} 39. Kh1 {[%emt 0:00:02]} h3 {[%emt 0:
00:10]} 40. g3 {[%emt 0:00:01]} Qg4 {[%emt 0:00:02]} 41. Nh2 {[%emt 0:00:03]}
Qg5 {[%emt 0:00:01]} 42. Kg1 {[%emt 0:00:02]} Nb6 {[%emt 0:00:11]} 43. Qe3 {
[%emt 0:00:01]} Na4 {[%emt 0:00:04]} 44. Qxg5 {[%emt 0:00:03]} Rxg5 {[%emt 0:
00:01]} 45. Rec1 {[%emt 0:00:03]} d5 {[%emt 0:00:01]} 46. Nf3 {[%emt 0:00:02]}
Rg4 {[%emt 0:00:02]} 47. e5 {[%emt 0:00:00]} f5 {[%emt 0:00:02]} 48. Nd2 {
[%emt 0:00:04]} Kf7 {[%emt 0:00:02]} 49. Nb3 {[%emt 0:00:01]} f4 {[%emt 0:00:
05]} 50. Kh2 Rcg8 {[%emt 0:00:04]} 51. Rg1 {[%emt 0:00:02]} Nb6 {[%emt 0:00:04]
} 52. Nc5 {[%emt 0:00:01]} Nc4 {[%emt 0:00:04]} 53. Nxb7 {[%emt 0:00:02]} fxg3+
{[%emt 0:00:05]} 54. Rxg3 {[%emt 0:00:01]} Rxg3 {[%emt 0:00:02]} 55. fxg3 {
[%emt 0:00:01]} Ne3 {[%emt 0:00:01]} 56. Rf2+ Ke7 {[%emt 0:00:02]} 57. Be2 {
[%emt 0:00:02]} Rg7 {[%emt 0:00:02]} 58. Nc5 {[%emt 0:00:01]} Nc2 {[%emt 0:00:
02]} 59. Rf6 {[%emt 0:00:02]} Ne3 {[%emt 0:00:03]} 60. Rxe6+ {[%emt 0:00:02]}
Kd8 {[%emt 0:00:01]} 61. Rf6 {[%emt 0:00:03]} 1-0